[Event "Titled Tuesday Blitz April 25 Late 2023"]
[White "Harish, Neeraj"]
[Black "Karttunen, Mika"]
[WhiteFideId "30958130"]
[BlackFideId "502081"]
[WhiteElo "1965"]
[BlackElo "2396"]
[Result "0-1"]
[Round "03"]
[TimeControl "180+2"]
[Date "2023.04.25"]
[WhiteClock "0:00:07"]
[BlackClock "0:00:32"]

1. e4 {[%clk 0:03:00]}  c5 {[%clk 0:02:53]} 2. Nf3 {[%clk 0:02:59]}  d6 {[%clk 0:02:53]} 3. d4 {[%clk 0:02:59]}  cxd4 {[%clk 0:02:54]} 4. Nxd4 {[%clk 0:02:59]}  Nf6 {[%clk 0:02:55]} 5. Nc3 {[%clk 0:03:00]}  a6 {[%clk 0:02:55]} 6. Be3 {[%clk 0:02:59]}  e5 {[%clk 0:02:55]} 7. Nb3 {[%clk 0:02:59]}  Be6 {[%clk 0:02:55]} 8. f3 {[%clk 0:02:58]}  Be7 {[%clk 0:02:53]} 9. Qd2 {[%clk 0:02:58]}  O-O {[%clk 0:02:52]} 10. O-O-O {[%clk 0:02:57]}  Nbd7 {[%clk 0:02:52]} 11. g4 {[%clk 0:02:55]}  b5 {[%clk 0:02:52]} 12. g5 {[%clk 0:02:56]}  Nh5 {[%clk 0:02:52]} 13. Nd5 {[%clk 0:02:53]}  Bxd5 {[%clk 0:02:49]} 14. exd5 {[%clk 0:02:54]}  f6 {[%clk 0:02:44]} 15. h4 {[%clk 0:02:42]}  Ng3 {[%clk 0:02:40]} 16. Rh3 {[%clk 0:02:30]}  Nxf1 {[%clk 0:02:40]} 17. Rxf1 {[%clk 0:02:29]}  fxg5 {[%clk 0:02:19]} 18. hxg5 {[%clk 0:02:25]}  g6 {[%clk 0:02:18]} 19. Rfh1 {[%clk 0:02:23]}  Rf7 {[%clk 0:02:18]} 20. Na5 {[%clk 0:02:07]}  Qc7 {[%clk 0:01:58]} 21. Nc6 {[%clk 0:02:05]}  Nb8 {[%clk 0:01:52]} 22. Qh2 {[%clk 0:01:56]}  Bf8 {[%clk 0:01:46]} 23. f4 {[%clk 0:01:44]}  Nxc6 {[%clk 0:01:43]} 24. dxc6 {[%clk 0:01:45]}  exf4 {[%clk 0:01:29]} 25. Bxf4 {[%clk 0:01:37]}  Re8 {[%clk 0:01:22]} 26. Bd2 {[%clk 0:00:47]}  Re4 {[%clk 0:01:01]} 27. Bc3 {[%clk 0:00:26]}  d5 {[%clk 0:00:43]} 28. Qd2 {[%clk 0:00:18]}  Qxc6 {[%clk 0:00:35]} 29. Re3 {[%clk 0:00:06]}  d4 {[%clk 0:00:30]} 30. Rxe4 {[%clk 0:00:05]}  Qxe4 {[%clk 0:00:30]} 31. Re1 {[%clk 0:00:05]}  dxc3 {[%clk 0:00:31]} 32. Rxe4 {[%clk 0:00:05]}  cxd2+ {[%clk 0:00:31]} 33. Kxd2 {[%clk 0:00:06]}  Be7 {[%clk 0:00:32]} 34. Re6 {[%clk 0:00:05]}  Bxg5+ {[%clk 0:00:32]} 35. Kc3 {[%clk 0:00:06]}  Rf6 {[%clk 0:00:32]} 36. Re8+ {[%clk 0:00:06]}  Kg7 {[%clk 0:00:33]} 37. Re7+ {[%clk 0:00:07]}  Rf7 {[%clk 0:00:32]} 0-1


[Site "https://www.chess.com"]

[Event "Titled Tuesday Blitz April 25 Late 2023"]
[White "Fiorito, Francisco"]
[Black "Tsyhanchuk, Stanislav"]
[WhiteFideId "180165"]
[BlackFideId "13505130"]
[WhiteElo "2341"]
[BlackElo "2173"]
[Result "1-0"]
[Round "03"]
[TimeControl "180+2"]
[Date "2023.04.25"]
[WhiteClock "0:01:41"]
[BlackClock "0:01:42"]

1. d4 {[%clk 0:03:00]}  Nf6 {[%clk 0:02:59]} 2. c4 {[%clk 0:03:01]}  e6 {[%clk 0:03:00]} 3. Nf3 {[%clk 0:02:55]}  d5 {[%clk 0:02:58]} 4. cxd5 {[%clk 0:02:55]}  exd5 {[%clk 0:02:57]} 5. Qc2 {[%clk 0:02:55]}  c6 {[%clk 0:02:53]} 6. Bf4 {[%clk 0:02:55]}  Bd6 {[%clk 0:02:53]} 7. Bxd6 {[%clk 0:02:49]}  Qxd6 {[%clk 0:02:54]} 8. e3 {[%clk 0:02:50]}  Ne4 {[%clk 0:02:53]} 9. Bd3 {[%clk 0:02:49]}  Bf5 {[%clk 0:02:52]} 10. Nbd2 {[%clk 0:02:49]}  Nxd2 {[%clk 0:02:38]} 11. Nxd2 {[%clk 0:02:37]}  Bxd3 {[%clk 0:02:38]} 12. Qxd3 {[%clk 0:02:38]}  Na6 {[%clk 0:02:33]} 13. a3 {[%clk 0:02:37]}  Nc7 {[%clk 0:02:31]} 14. O-O {[%clk 0:02:37]}  O-O {[%clk 0:02:30]} 15. b4 {[%clk 0:02:32]}  a5 {[%clk 0:02:15]} 16. Rab1 {[%clk 0:02:24]}  axb4 {[%clk 0:02:15]} 17. axb4 {[%clk 0:02:18]}  Nb5 {[%clk 0:02:13]} 18. Rb3 {[%clk 0:02:09]}  f5 {[%clk 0:02:11]} 19. g3 {[%clk 0:02:09]}  Ra2 {[%clk 0:02:03]} 20. Nf3 {[%clk 0:02:08]}  Rfa8 {[%clk 0:02:00]} 21. Qxf5 {[%clk 0:02:01]}  R2a3 {[%clk 0:01:44]} 22. Rxa3 {[%clk 0:01:58]}  Nxa3 {[%clk 0:01:45]} 23. Ne5 {[%clk 0:01:42]}  Qxb4 {[%clk 0:01:42]} 24. Qe6+ {[%clk 0:01:41]} 1-0


[Site "https://www.chess.com"]

[Event "Titled Tuesday Blitz April 25 Late 2023"]
[White "Garmash, Aliona"]
[Black "Liu, Eric"]
[WhiteFideId "34127620"]
[BlackFideId "30960240"]
[WhiteElo "1959"]
[BlackElo "2094"]
[Result "0-1"]
[Round "03"]
[TimeControl "180+2"]
[Date "2023.04.25"]
[WhiteClock "0:00:01"]
[BlackClock "0:01:27"]

1. d4 {[%clk 0:03:00]}  b6 {[%clk 0:03:00]} 2. c4 {[%clk 0:02:58]}  Bb7 {[%clk 0:03:01]} 3. Nc3 {[%clk 0:02:58]}  e6 {[%clk 0:03:01]} 4. e4 {[%clk 0:02:54]}  h5 {[%clk 0:03:00]} 5. a3 {[%clk 0:02:52]}  h4 {[%clk 0:03:01]} 6. h3 {[%clk 0:02:51]}  d6 {[%clk 0:02:57]} 7. Bd3 {[%clk 0:02:49]}  Nd7 {[%clk 0:02:56]} 8. Nf3 {[%clk 0:02:49]}  e5 {[%clk 0:02:57]} 9. Be3 {[%clk 0:02:44]}  Ngf6 {[%clk 0:02:57]} 10. O-O {[%clk 0:02:27]}  Be7 {[%clk 0:02:56]} 11. Re1 {[%clk 0:02:20]}  Nh7 {[%clk 0:02:49]} 12. b4 {[%clk 0:02:07]}  Ng5 {[%clk 0:02:48]} 13. Nxg5 {[%clk 0:02:03]}  Bxg5 {[%clk 0:02:49]} 14. Qg4 {[%clk 0:01:45]}  Bxe3 {[%clk 0:02:46]} 15. Qxg7 {[%clk 0:01:29]}  Bxf2+ {[%clk 0:02:07]} 16. Kxf2 {[%clk 0:01:28]}  Qf6+ {[%clk 0:02:08]} 17. Qxf6 {[%clk 0:01:28]}  Nxf6 {[%clk 0:02:09]} 18. dxe5 {[%clk 0:01:24]}  dxe5 {[%clk 0:02:10]} 19. Nd5 {[%clk 0:01:13]}  Bxd5 {[%clk 0:02:01]} 20. exd5 {[%clk 0:01:13]}  Rh5 {[%clk 0:02:01]} 21. Re2 {[%clk 0:01:03]}  Kd7 {[%clk 0:02:01]} 22. Rae1 {[%clk 0:01:02]}  Re8 {[%clk 0:02:01]} 23. Re3 {[%clk 0:00:43]}  Rg5 {[%clk 0:01:57]} 24. g4 {[%clk 0:00:26]}  hxg3+ {[%clk 0:01:57]} 25. Rxg3 {[%clk 0:00:27]}  Rxg3 {[%clk 0:01:48]} 26. Kxg3 {[%clk 0:00:27]}  e4 {[%clk 0:01:48]} 27. Bc2 {[%clk 0:00:22]}  Kd6 {[%clk 0:01:49]} 28. Kf4 {[%clk 0:00:21]}  Rh8 {[%clk 0:01:38]} 29. Bxe4 {[%clk 0:00:18]}  Rxh3 {[%clk 0:01:35]} 30. Bf3 {[%clk 0:00:16]}  Rh4+ {[%clk 0:01:33]} 31. Kg5 {[%clk 0:00:14]}  Rxc4 {[%clk 0:01:31]} 32. Bh1 {[%clk 0:00:06]}  Nd7 {[%clk 0:01:30]} 33. Rf1 {[%clk 0:00:05]}  f6+ {[%clk 0:01:30]} 34. Kg6 {[%clk 0:00:04]}  Rg4+ {[%clk 0:01:29]} 35. Kf7 {[%clk 0:00:04]}  Rg3 {[%clk 0:01:30]} 36. a4 {[%clk 0:00:03]}  a5 {[%clk 0:01:29]} 37. bxa5 {[%clk 0:00:03]}  bxa5 {[%clk 0:01:30]} 38. Rb1 {[%clk 0:00:02]}  Rh3 {[%clk 0:01:28]} 39. Bg2 {[%clk 0:00:01]}  Rh7+ {[%clk 0:01:27]} 40. Kg6 {[%clk 0:00:01]}  Rh4 {[%clk 0:01:27]} 0-1


[Site "https://www.chess.com"]

[Event "Titled Tuesday Blitz April 25 Late 2023"]
[White "Oliveira, Tiago Batista"]
[Black "Kuzmin, Roman"]
[WhiteFideId "2108291"]
[BlackFideId "44134932"]
[WhiteElo "1962"]
[BlackElo "2192"]
[Result "0-1"]
[Round "03"]
[TimeControl "180+2"]
[Date "2023.04.25"]
[WhiteClock "0:00:10"]
[BlackClock "0:00:15"]

1. d4 {[%clk 0:03:00]}  Nf6 {[%clk 0:02:59]} 2. c4 {[%clk 0:03:00]}  e6 {[%clk 0:03:00]} 3. Nf3 {[%clk 0:02:59]}  d5 {[%clk 0:03:01]} 4. g3 {[%clk 0:02:59]}  Nbd7 {[%clk 0:03:01]} 5. Bg2 {[%clk 0:02:59]}  Be7 {[%clk 0:03:01]} 6. O-O {[%clk 0:02:59]}  O-O {[%clk 0:03:02]} 7. Nbd2 {[%clk 0:02:59]}  c6 {[%clk 0:03:01]} 8. Qc2 {[%clk 0:02:59]}  b6 {[%clk 0:03:02]} 9. Rd1 {[%clk 0:02:59]}  Bb7 {[%clk 0:03:02]} 10. e4 {[%clk 0:02:59]}  dxc4 {[%clk 0:03:00]} 11. e5 {[%clk 0:02:58]}  Nd5 {[%clk 0:02:59]} 12. Ne4 {[%clk 0:02:58]}  h6 {[%clk 0:02:47]} 13. g4 {[%clk 0:02:54]}  c5 {[%clk 0:02:35]} 14. g5 {[%clk 0:02:53]}  h5 {[%clk 0:02:27]} 15. dxc5 {[%clk 0:02:39]}  Nxc5 {[%clk 0:02:16]} 16. Nf6+ {[%clk 0:02:39]}  gxf6 {[%clk 0:01:59]} 17. gxf6 {[%clk 0:02:35]}  Bxf6 {[%clk 0:02:00]} 18. exf6 {[%clk 0:02:28]}  Qxf6 {[%clk 0:02:01]} 19. Qxc4 {[%clk 0:02:24]}  Kh8 {[%clk 0:01:46]} 20. Bg5 {[%clk 0:01:41]}  Qg7 {[%clk 0:01:17]} 21. b4 {[%clk 0:01:26]}  Nd7 {[%clk 0:01:12]} 22. Qh4 {[%clk 0:01:20]}  Qg6 {[%clk 0:01:03]} 23. Kh1 {[%clk 0:00:43]}  f6 {[%clk 0:00:35]} 24. Bd2 {[%clk 0:00:34]}  Rg8 {[%clk 0:00:35]} 25. Rg1 {[%clk 0:00:33]}  Qg4 {[%clk 0:00:35]} 26. Qxg4 {[%clk 0:00:30]}  hxg4 {[%clk 0:00:33]} 27. Nd4 {[%clk 0:00:28]}  Rae8 {[%clk 0:00:25]} 28. Rae1 {[%clk 0:00:25]}  Ne5 {[%clk 0:00:23]} 29. f4 {[%clk 0:00:20]}  gxf3 {[%clk 0:00:23]} 30. Nxf3 {[%clk 0:00:20]}  Rxg2 {[%clk 0:00:20]} 31. Nxe5 {[%clk 0:00:17]}  Rxd2 {[%clk 0:00:16]} 32. Nf7+ {[%clk 0:00:13]}  Kh7 {[%clk 0:00:17]} 33. Re4 {[%clk 0:00:10]}  Nf4 {[%clk 0:00:15]} 0-1


[Site "https://www.chess.com"]

[Event "Titled Tuesday Blitz April 25 Late 2023"]
[White "Remolar Gallen, Jose"]
[Black "Toma, Katarzyna"]
[WhiteFideId "2215187"]
[BlackFideId "1119907"]
[WhiteElo "2223"]
[BlackElo "2149"]
[Result "1-0"]
[Round "03"]
[TimeControl "180+2"]
[Date "2023.04.25"]
[WhiteClock "0:00:08"]
[BlackClock "0:00:01"]

1. d4 {[%clk 0:03:00]}  d5 {[%clk 0:02:56]} 2. c4 {[%clk 0:03:01]}  e6 {[%clk 0:02:52]} 3. Nc3 {[%clk 0:02:59]}  Nf6 {[%clk 0:02:50]} 4. cxd5 {[%clk 0:02:58]}  exd5 {[%clk 0:02:49]} 5. Bg5 {[%clk 0:02:59]}  c6 {[%clk 0:02:45]} 6. e3 {[%clk 0:02:58]}  Be7 {[%clk 0:02:41]} 7. Bd3 {[%clk 0:02:57]}  O-O {[%clk 0:02:40]} 8. Qc2 {[%clk 0:02:55]}  h6 {[%clk 0:02:39]} 9. Bh4 {[%clk 0:02:52]}  Nbd7 {[%clk 0:02:37]} 10. Nge2 {[%clk 0:02:49]}  Re8 {[%clk 0:02:32]} 11. O-O {[%clk 0:02:46]}  Ne4 {[%clk 0:02:10]} 12. Bxe7 {[%clk 0:02:44]}  Qxe7 {[%clk 0:02:09]} 13. Rae1 {[%clk 0:02:29]}  Ndf6 {[%clk 0:02:01]} 14. f3 {[%clk 0:02:25]}  Ng5 {[%clk 0:01:36]} 15. e4 {[%clk 0:01:57]}  dxe4 {[%clk 0:01:20]} 16. fxe4 {[%clk 0:01:58]}  Ng4 {[%clk 0:01:14]} 17. Ng3 {[%clk 0:01:35]}  Qd6 {[%clk 0:00:48]} 18. Nce2 {[%clk 0:00:36]}  Ne3 {[%clk 0:00:37]} 19. Qc3 {[%clk 0:00:35]}  Nxf1 {[%clk 0:00:29]} 20. Rxf1 {[%clk 0:00:35]}  Be6 {[%clk 0:00:16]} 21. Nf4 {[%clk 0:00:34]}  Rad8 {[%clk 0:00:14]} 22. Nge2 {[%clk 0:00:31]}  b6 {[%clk 0:00:11]} 23. Nh5 {[%clk 0:00:26]}  Nh7 {[%clk 0:00:08]} 24. d5 {[%clk 0:00:24]}  f6 {[%clk 0:00:02]} 25. Nef4 {[%clk 0:00:16]}  Bf7 {[%clk 0:00:01]} 26. Ng3 {[%clk 0:00:08]} 1-0


[Site "https://www.chess.com"]

[Event "Titled Tuesday Blitz April 25 Late 2023"]
[White "Shivakumar, Shawnak"]
[Black "Eidelman, Gabriel"]
[WhiteFideId "30940192"]
[BlackFideId "30910544"]
[WhiteElo "2089"]
[BlackElo "2209"]
[Result "1-0"]
[Round "03"]
[TimeControl "180+2"]
[Date "2023.04.25"]
[WhiteClock "0:01:01"]
[BlackClock "0:00:20"]

1. c4 {[%clk 0:02:59]}  c6 {[%clk 0:02:58]} 2. Nc3 {[%clk 0:02:58]}  d5 {[%clk 0:02:58]} 3. cxd5 {[%clk 0:02:55]}  cxd5 {[%clk 0:02:58]} 4. d4 {[%clk 0:02:56]}  Nf6 {[%clk 0:02:55]} 5. Bf4 {[%clk 0:02:55]}  e6 {[%clk 0:02:49]} 6. e3 {[%clk 0:02:54]}  Bd6 {[%clk 0:02:45]} 7. Bxd6 {[%clk 0:02:50]}  Qxd6 {[%clk 0:02:44]} 8. Bd3 {[%clk 0:02:51]}  O-O {[%clk 0:02:42]} 9. f4 {[%clk 0:02:51]}  a6 {[%clk 0:02:33]} 10. Nf3 {[%clk 0:02:50]}  b5 {[%clk 0:02:33]} 11. O-O {[%clk 0:02:48]}  Bb7 {[%clk 0:02:32]} 12. Ne5 {[%clk 0:02:48]}  Ne4 {[%clk 0:02:26]} 13. f5 {[%clk 0:02:34]}  f6 {[%clk 0:02:09]} 14. Ng4 {[%clk 0:02:13]}  Nd7 {[%clk 0:02:04]} 15. Qf3 {[%clk 0:01:57]}  Nxc3 {[%clk 0:01:45]} 16. fxe6 {[%clk 0:01:53]}  Qxe6 {[%clk 0:01:26]} 17. Bxh7+ {[%clk 0:01:43]}  Kf7 {[%clk 0:01:09]} 18. Bf5 {[%clk 0:01:29]}  Qd6 {[%clk 0:00:59]} 19. bxc3 {[%clk 0:01:27]}  Ke7 {[%clk 0:00:52]} 20. e4 {[%clk 0:01:18]}  Kd8 {[%clk 0:00:37]} 21. e5 {[%clk 0:01:07]}  fxe5 {[%clk 0:00:35]} 22. Qg3 {[%clk 0:01:07]}  Re8 {[%clk 0:00:20]} 23. Bxd7 {[%clk 0:01:03]}  Qxd7 {[%clk 0:00:20]} 24. Nxe5 {[%clk 0:01:02]}  Qe7 {[%clk 0:00:20]} 25. Rf7 {[%clk 0:01:01]} 1-0


[Site "https://www.chess.com"]

[Event "Titled Tuesday Blitz April 25 Late 2023"]
[White "Torres Dominguez, David"]
[Black "Meduri, Aakaash"]
[WhiteFideId "2220857"]
[BlackFideId "2032252"]
[WhiteElo "1999"]
[BlackElo "2113"]
[Result "1-0"]
[Round "03"]
[TimeControl "180+2"]
[Date "2023.04.25"]
[WhiteClock "0:00:49"]
[BlackClock "0:00:52"]

1. e4 {[%clk 0:03:00]}  c5 {[%clk 0:03:00]} 2. Nc3 {[%clk 0:03:00]}  Nc6 {[%clk 0:02:59]} 3. Bb5 {[%clk 0:02:59]}  Nd4 {[%clk 0:02:59]} 4. Bc4 {[%clk 0:02:59]}  g6 {[%clk 0:02:58]} 5. Nf3 {[%clk 0:02:55]}  Bg7 {[%clk 0:02:58]} 6. Nxd4 {[%clk 0:02:54]}  cxd4 {[%clk 0:02:58]} 7. Qf3 {[%clk 0:02:53]}  Nh6 {[%clk 0:02:44]} 8. d3 {[%clk 0:02:49]}  O-O {[%clk 0:02:40]} 9. Bxh6 {[%clk 0:02:33]}  Bxh6 {[%clk 0:02:32]} 10. Ne2 {[%clk 0:02:33]}  Qa5+ {[%clk 0:02:30]} 11. Kf1 {[%clk 0:02:18]}  Bg7 {[%clk 0:02:29]} 12. h4 {[%clk 0:02:13]}  h5 {[%clk 0:02:26]} 13. Nf4 {[%clk 0:02:03]}  d6 {[%clk 0:02:22]} 14. Nxg6 {[%clk 0:02:00]}  e6 {[%clk 0:02:00]} 15. b4 {[%clk 0:01:37]}  Qxb4 {[%clk 0:01:50]} 16. Ne7+ {[%clk 0:01:30]}  Kh7 {[%clk 0:01:49]} 17. Qxh5+ {[%clk 0:01:27]}  Bh6 {[%clk 0:01:48]} 18. g4 {[%clk 0:01:24]}  d5 {[%clk 0:01:31]} 19. g5 {[%clk 0:01:20]}  Qxe7 {[%clk 0:01:29]} 20. Qxh6+ {[%clk 0:01:17]}  Kg8 {[%clk 0:01:29]} 21. exd5 {[%clk 0:01:06]}  exd5 {[%clk 0:01:23]} 22. Bxd5 {[%clk 0:00:59]}  Re8 {[%clk 0:01:19]} 23. Be4 {[%clk 0:00:59]}  f5 {[%clk 0:00:59]} 24. gxf6 {[%clk 0:00:50]}  Qf7 {[%clk 0:00:52]} 25. Rg1+ {[%clk 0:00:49]} 1-0


[Site "https://www.chess.com"]

[Event "Titled Tuesday Blitz April 25 Late 2023"]
[White "Vlassov, Nikolai"]
[Black "Ardila, Oscar Humberto"]
[WhiteFideId "4103360"]
[BlackFideId "4404742"]
[WhiteElo "2324"]
[BlackElo "1918"]
[Result "1-0"]
[Round "03"]
[TimeControl "180+2"]
[Date "2023.04.25"]
[WhiteClock "0:00:42"]
[BlackClock "0:00:10"]

1. e4 {[%clk 0:03:00]}  e5 {[%clk 0:02:53]} 2. Bc4 {[%clk 0:02:56]}  Nf6 {[%clk 0:02:53]} 3. d3 {[%clk 0:02:56]}  Bc5 {[%clk 0:02:52]} 4. Nf3 {[%clk 0:02:55]}  d6 {[%clk 0:02:52]} 5. Bg5 {[%clk 0:02:55]}  h6 {[%clk 0:02:51]} 6. Bh4 {[%clk 0:02:55]}  O-O {[%clk 0:02:50]} 7. Nc3 {[%clk 0:02:55]}  Be6 {[%clk 0:02:49]} 8. Qe2 {[%clk 0:02:52]}  Nbd7 {[%clk 0:02:48]} 9. h3 {[%clk 0:02:50]}  c6 {[%clk 0:02:37]} 10. g4 {[%clk 0:02:47]}  Bxc4 {[%clk 0:02:34]} 11. dxc4 {[%clk 0:02:46]}  Qb6 {[%clk 0:02:34]} 12. O-O-O {[%clk 0:02:45]}  Qa5 {[%clk 0:02:19]} 13. g5 {[%clk 0:02:26]}  hxg5 {[%clk 0:02:18]} 14. Bxg5 {[%clk 0:02:26]}  Bb4 {[%clk 0:02:16]} 15. Bd2 {[%clk 0:02:18]}  Bxc3 {[%clk 0:02:08]} 16. Bxc3 {[%clk 0:02:18]}  Qxa2 {[%clk 0:02:09]} 17. Rhg1 {[%clk 0:02:14]}  Nc5 {[%clk 0:02:04]} 18. Ng5 {[%clk 0:01:56]}  Rfd8 {[%clk 0:01:42]} 19. Rg3 {[%clk 0:01:43]}  d5 {[%clk 0:01:32]} 20. exd5 {[%clk 0:01:08]}  cxd5 {[%clk 0:01:31]} 21. Bxe5 {[%clk 0:00:52]}  dxc4 {[%clk 0:01:30]} 22. Ra3 {[%clk 0:00:47]}  Rxd1+ {[%clk 0:00:22]} 23. Qxd1 {[%clk 0:00:45]}  Qxa3 {[%clk 0:00:19]} 24. bxa3 {[%clk 0:00:44]}  Ncd7 {[%clk 0:00:10]} 25. Bxf6 {[%clk 0:00:42]} 1-0


[Site "https://www.chess.com"]

[Event "Titled Tuesday Blitz April 25 Late 2023"]
[White "Mikhalsky, Vladimir"]
[Black "Leschinsky, Gary"]
[WhiteFideId "14144352"]
[BlackFideId "30951321"]
[WhiteElo "2236"]
[BlackElo "1855"]
[Result "0-1"]
[Round "03"]
[TimeControl "180+2"]
[Date "2023.04.25"]
[WhiteClock "0:00:12"]
[BlackClock "0:00:41"]

1. d4 {[%clk 0:02:49]}  d5 {[%clk 0:02:57]} 2. c4 {[%clk 0:02:48]}  c6 {[%clk 0:02:56]} 3. Nf3 {[%clk 0:02:48]}  Nf6 {[%clk 0:02:56]} 4. Nc3 {[%clk 0:02:47]}  e6 {[%clk 0:02:56]} 5. g3 {[%clk 0:02:47]}  dxc4 {[%clk 0:02:55]} 6. Bg2 {[%clk 0:02:46]}  b5 {[%clk 0:02:55]} 7. O-O {[%clk 0:02:47]}  Bb7 {[%clk 0:02:54]} 8. a4 {[%clk 0:02:46]}  a6 {[%clk 0:02:53]} 9. Bf4 {[%clk 0:02:42]}  Bd6 {[%clk 0:02:50]} 10. Ne5 {[%clk 0:02:42]}  Nd5 {[%clk 0:02:47]} 11. Ne4 {[%clk 0:02:39]}  Nxf4 {[%clk 0:02:45]} 12. gxf4 {[%clk 0:02:39]}  O-O {[%clk 0:02:45]} 13. b3 {[%clk 0:02:37]}  cxb3 {[%clk 0:02:41]} 14. Qxb3 {[%clk 0:02:36]}  Be7 {[%clk 0:02:38]} 15. Rfd1 {[%clk 0:02:30]}  Nd7 {[%clk 0:02:37]} 16. Nc5 {[%clk 0:02:23]}  Bxc5 {[%clk 0:02:20]} 17. Nxd7 {[%clk 0:01:57]}  Qxd7 {[%clk 0:02:19]} 18. dxc5 {[%clk 0:01:57]}  Qe7 {[%clk 0:02:20]} 19. Rd6 {[%clk 0:01:56]}  Qf6 {[%clk 0:02:15]} 20. Rad1 {[%clk 0:01:34]}  Qxf4 {[%clk 0:02:14]} 21. Rd7 {[%clk 0:01:21]}  Rab8 {[%clk 0:01:53]} 22. axb5 {[%clk 0:01:10]}  axb5 {[%clk 0:01:51]} 23. e3 {[%clk 0:01:09]}  Qg5 {[%clk 0:01:49]} 24. Qb4 {[%clk 0:00:53]}  Bc8 {[%clk 0:01:48]} 25. Ra7 {[%clk 0:00:48]}  e5 {[%clk 0:01:46]} 26. h4 {[%clk 0:00:43]}  Qg6 {[%clk 0:01:37]} 27. Rd6 {[%clk 0:00:42]}  Be6 {[%clk 0:01:28]} 28. Rxc6 {[%clk 0:00:39]}  Rfd8 {[%clk 0:01:15]} 29. Rd6 {[%clk 0:00:39]}  Rxd6 {[%clk 0:01:06]} 30. cxd6 {[%clk 0:00:38]}  Qd3 {[%clk 0:01:07]} 31. Ra3 {[%clk 0:00:27]}  Qd1+ {[%clk 0:01:04]} 32. Kh2 {[%clk 0:00:26]}  h6 {[%clk 0:01:02]} 33. Qc5 {[%clk 0:00:25]}  Rd8 {[%clk 0:00:58]} 34. Qxe5 {[%clk 0:00:22]}  Qxd6 {[%clk 0:00:57]} 35. Qxd6 {[%clk 0:00:21]}  Rxd6 {[%clk 0:00:58]} 36. Ra8+ {[%clk 0:00:21]}  Kh7 {[%clk 0:00:58]} 37. Rb8 {[%clk 0:00:21]}  Bc4 {[%clk 0:00:55]} 38. Kg3 {[%clk 0:00:21]}  g6 {[%clk 0:00:54]} 39. h5 {[%clk 0:00:21]}  g5 {[%clk 0:00:53]} 40. Be4+ {[%clk 0:00:20]}  Kg7 {[%clk 0:00:54]} 41. f4 {[%clk 0:00:20]}  Re6 {[%clk 0:00:53]} 42. Kf3 {[%clk 0:00:20]}  g4+ {[%clk 0:00:52]} 43. Kxg4 {[%clk 0:00:20]}  Rxe4 {[%clk 0:00:51]} 44. Kf5 {[%clk 0:00:20]}  Rxe3 {[%clk 0:00:50]} 45. Rb6 {[%clk 0:00:19]}  Re6 {[%clk 0:00:44]} 46. Rb8 {[%clk 0:00:15]}  Re1 {[%clk 0:00:44]} 47. Rb6 {[%clk 0:00:12]}  Rh1 {[%clk 0:00:44]} 48. Kg4 {[%clk 0:00:12]}  Be2+ {[%clk 0:00:43]} 49. Kg3 {[%clk 0:00:12]}  Rxh5 {[%clk 0:00:43]} 50. f5 {[%clk 0:00:12]}  Rxf5 {[%clk 0:00:41]} 0-1


[Site "https://www.chess.com"]

[Event "Titled Tuesday Blitz April 25 Late 2023"]
[White "Panico, Nick"]
[Black "Lopez Gracia, Fernando"]
[WhiteFideId "2026724"]
[BlackFideId "2207184"]
[WhiteElo "1982"]
[BlackElo "2255"]
[Result "0-1"]
[Round "03"]
[TimeControl "180+2"]
[Date "2023.04.25"]
[WhiteClock "0:01:36"]
[BlackClock "0:01:48"]

1. f4 {[%clk 0:03:00]}  c5 {[%clk 0:02:58]} 2. Nf3 {[%clk 0:02:59]}  Nc6 {[%clk 0:02:56]} 3. e4 {[%clk 0:02:57]}  e6 {[%clk 0:02:55]} 4. Be2 {[%clk 0:02:55]}  g6 {[%clk 0:02:55]} 5. c3 {[%clk 0:02:55]}  d5 {[%clk 0:02:50]} 6. d3 {[%clk 0:02:55]}  Bg7 {[%clk 0:02:49]} 7. O-O {[%clk 0:02:54]}  Nge7 {[%clk 0:02:50]} 8. Be3 {[%clk 0:02:47]}  b6 {[%clk 0:02:49]} 9. Nbd2 {[%clk 0:02:44]}  O-O {[%clk 0:02:49]} 10. Kh1 {[%clk 0:02:40]}  d4 {[%clk 0:02:48]} 11. cxd4 {[%clk 0:02:40]}  cxd4 {[%clk 0:02:49]} 12. Bf2 {[%clk 0:02:38]}  Ba6 {[%clk 0:02:49]} 13. Rc1 {[%clk 0:02:37]}  Rc8 {[%clk 0:02:48]} 14. Nc4 {[%clk 0:02:34]}  Bxc4 {[%clk 0:02:47]} 15. Rxc4 {[%clk 0:02:34]}  e5 {[%clk 0:02:46]} 16. fxe5 {[%clk 0:02:31]}  b5 {[%clk 0:02:34]} 17. Rc5 {[%clk 0:02:27]}  Nxe5 {[%clk 0:02:29]} 18. Rxc8 {[%clk 0:02:23]}  Qxc8 {[%clk 0:02:27]} 19. Nxe5 {[%clk 0:02:18]}  Bxe5 {[%clk 0:02:26]} 20. Qb3 {[%clk 0:02:17]}  a6 {[%clk 0:02:23]} 21. Bh4 {[%clk 0:02:12]}  Qc7 {[%clk 0:02:19]} 22. Bxe7 {[%clk 0:02:08]}  Qxe7 {[%clk 0:02:18]} 23. Bg4 {[%clk 0:02:02]}  Qh4 {[%clk 0:02:10]} 24. h3 {[%clk 0:01:47]}  Qg3 {[%clk 0:02:08]} 25. Kg1 {[%clk 0:01:47]}  h5 {[%clk 0:02:03]} 26. Bf3 {[%clk 0:01:45]}  Rc8 {[%clk 0:01:57]} 27. Qd1 {[%clk 0:01:41]}  Bf4 {[%clk 0:01:55]} 28. Qe1 {[%clk 0:01:40]}  Qh2+ {[%clk 0:01:53]} 29. Kf2 {[%clk 0:01:39]}  Bg3+ {[%clk 0:01:54]} 30. Ke2 {[%clk 0:01:40]}  Bxe1 {[%clk 0:01:51]} 31. Kxe1 {[%clk 0:01:38]}  Rc1+ {[%clk 0:01:48]} 32. Bd1 {[%clk 0:01:38]}  Qg3+ {[%clk 0:01:47]} 33. Ke2 {[%clk 0:01:36]}  Qe3# {[%clk 0:01:48]} 0-1


[Site "https://www.chess.com"]

[Event "Titled Tuesday Blitz April 25 Late 2023"]
[White "Bulgurlu, Okan"]
[Black "Zakarian, David"]
[WhiteFideId "6352316"]
[BlackFideId "13301276"]
[WhiteElo "1908"]
[BlackElo "2306"]
[Result "1-0"]
[Round "03"]
[TimeControl "180+2"]
[Date "2023.04.25"]
[WhiteClock "0:00:41"]
[BlackClock "0:01:04"]

1. e4 {[%clk 0:03:00]}  Nc6 {[%clk 0:02:59]} 2. d4 {[%clk 0:02:58]}  d5 {[%clk 0:02:59]} 3. exd5 {[%clk 0:02:51]}  Qxd5 {[%clk 0:03:00]} 4. Nf3 {[%clk 0:02:50]}  Bg4 {[%clk 0:03:00]} 5. Be3 {[%clk 0:02:45]}  Nf6 {[%clk 0:02:57]} 6. Be2 {[%clk 0:02:43]}  O-O-O {[%clk 0:02:55]} 7. Nc3 {[%clk 0:02:40]}  Qh5 {[%clk 0:02:48]} 8. Qd3 {[%clk 0:02:14]}  e5 {[%clk 0:02:44]} 9. O-O-O {[%clk 0:02:13]}  Bb4 {[%clk 0:02:14]} 10. h3 {[%clk 0:02:02]}  Bf5 {[%clk 0:02:08]} 11. Qc4 {[%clk 0:01:57]}  Bxc3 {[%clk 0:02:02]} 12. Qxc3 {[%clk 0:01:51]}  e4 {[%clk 0:01:48]} 13. g4 {[%clk 0:01:39]}  Bxg4 {[%clk 0:01:28]} 14. hxg4 {[%clk 0:01:39]}  Qxg4 {[%clk 0:01:29]} 15. Rdg1 {[%clk 0:01:20]}  Qe6 {[%clk 0:01:24]} 16. Ng5 {[%clk 0:01:02]}  Qxa2 {[%clk 0:01:22]} 17. Bc4 {[%clk 0:00:58]}  Qa1+ {[%clk 0:01:15]} 18. Kd2 {[%clk 0:00:58]}  Qa4 {[%clk 0:01:16]} 19. Ra1 {[%clk 0:00:52]}  Qb4 {[%clk 0:01:15]} 20. Qxb4 {[%clk 0:00:52]}  Nxb4 {[%clk 0:01:16]} 21. Nxf7 {[%clk 0:00:52]}  c5 {[%clk 0:01:11]} 22. Nxh8 {[%clk 0:00:49]}  cxd4 {[%clk 0:01:10]} 23. Bg5 {[%clk 0:00:48]}  Rxh8 {[%clk 0:01:08]} 24. Bxf6 {[%clk 0:00:48]}  gxf6 {[%clk 0:01:09]} 25. Rxa7 {[%clk 0:00:45]}  Kb8 {[%clk 0:01:09]} 26. Rha1 {[%clk 0:00:44]}  Kc7 {[%clk 0:01:08]} 27. Ra8 {[%clk 0:00:40]}  Rxa8 {[%clk 0:01:04]} 28. Rxa8 {[%clk 0:00:41]} 1-0


[Site "https://www.chess.com"]